{"text_format":"3","workbook":"xlsx","n_sheets":2,"sheets":["PRICING SCHEDULE","Sheet1"],"not_rendered":{"images":1,"defined_names":2},"read":"whole","date_system":"1900"}

{"sheet":"PRICING SCHEDULE","index":0,"n_rows":105,"n_cols":11,"rows_kept":105,"merged":[[12,3,12,4],[13,3,13,4],[13,6,15,6],[14,3,14,4],[15,3,15,4],[17,5,17,7],[19,1,19,2],[20,0,20,2],[33,0,33,2],[101,1,104,1],[101,3,101,4],[101,5,101,6],[102,3,102,4],[103,3,103,4],[103,5,103,6],[104,3,104,4],[104,5,104,6]]}
[null,"SUPPLY CHAIN MANAGEMENT"]
[null,"Pricing schedule"]
["RFx No",null,"RFB 2783-2023"]
["RFx Title",null,"SUPPLY AND DELIVERY OF LAN INFRASTRUCTURE EQUIPMENT AT VARIOUS DEPARTMENTS OF HEALTH FACILITIES, CAPE TOWN"]
["Bidder Name "]
[]
["1. INSTRUCTION FOR COMPLETING THE PRICING SCHEDULE"]
["(a)  THIS PRICING SCHEDULE MUST BE SUBMITTED SEPARATELY FROM THE TECHNICAL RESPONSE, failing which the BID may be DISQUALIFIED."]
["(b)  Bidder must complete/enter YELLOW cells only"]
["(c)  Unit and Line prices must be VAT EXCLUSIVE and in South African Rand (ZAR) currency."]
["(e) The price must include all cost to deliver the goods or render the service, including all applicable taxes, duty fees, logistics/delivery, storage, labour, overtime and subsistance and travel"]
["(f)  Prices that are dependent on Rate of Exchange (ROE) must use ROE indicated below, then enter in Column \"Forex %\" the percentage of the price that is ROE dependent (0% means the price is not ROE dependent)"]
[null,"Foreign currency",null,"South African Rand (ZAR) exchange rate "]
[null,"1 US Dollar",null,18.14,null,null,"Mark with an X, which ROE is applicable"]
[null,"1 Euro",null,{"v":19.9,"d":"19.90"}]
[null,"1 Pound (UK)",null,23.16]
[]
[]
["Item No","Goods/Service description",null,"Unit of measure","Forex %","Qty ","Unit Price \n(Excl VAT)","Line Price Y1","Forex Price portion","BRAND / MODEL (if applicable)","Price clarification comment"]
[1,"The Supply and Delivery of Cisco LAN infrastructure equipment",{"$nulls":5}," ",{"$f":"SUBTOTAL(9,I22:I31)","v":0}]
["Default"]
["1.0","C9606R=","Cisco Catalyst 9600 Series 6 Slot Chassis",null,{"v":0,"d":"0%"},1,0,{"$f":"G22*F22","v":0},{"$f":"E22*H22","v":0}]
["1.0.1","CON-SSSNT-C9606R","SOLN SUPP 8X5XNBD Cisco Catalyst 9600 (60 months)",null,{"v":0,"d":"0%"},1,0,{"$f":"G23*F23","v":0},{"$f":"E23*H23","v":0}]
["1.1","C9600-DNA-A","Cisco Catalyst 9600 DNA Advantage Term License",null,{"v":0,"d":"0%"},1,0,0,0]
["1.1.0.1","CON-SSTCM-C96A","SOLN SUPP SW SUBCisco Catalyst 9600 (60 months)",null,{"v":0,"d":"0%"},1,0,0,0]
["1.1.0.2","C9600-DNA-A-5Y","Cisco Catalyst 9600 DNA Advantage 5 Year License",null,{"v":0,"d":"0%"},1,0,0,0]
["1.2","C9606-SLOT-BLANK","Cisco Catalyst 9600 Series Blank for Chassis Module Slot",null,{"v":0,"d":"0%"},6,0,0,0]
["1.3","C9606-PWR-BLANK","Cisco Catalyst 9600 Series Blank for Power Supply Slot",null,{"v":0,"d":"0%"},4,0,0,0]
["1.4","C9606-FAN","Cisco Catalyst 9600 Series C9606 Chassis Fan Tray",null,{"v":0,"d":"0%"},1,0,0,0]
["2.0","C9600-PWR-2KWAC=","Cisco Catalyst 9600 Series 2000W AC Power Supply",null,{"v":0,"d":"0%"},3,0,0,0]
["2.1","CAB-TA-IN","India AC Type A Power Cable",null,{"v":0,"d":"0%"},3,0,0,0]
["3.0","C9606-PWR-BLANK=","Cisco Catalyst 9600 Series Blank for Power Supply Slot",null,{"v":0,"d":"0%"},1,0,0,{"$f":"E32*H32","v":0}]
["4.0","SFP-10G-SR-S=","10GBASE-SR SFP Module, Enterprise-Class",null,{"v":0,"d":"0%"},10,0,0,0]
["1GIG COPPER",{"$nulls":3},{"v":0,"d":"0%"},null,0,{"$f":"G34*F34","v":0},{"$f":"E34*H34","v":0}]
["5.0","GLC-TE=","1000BASE-T SFP transceiver module for Category 5 copper wire",null,{"v":0,"d":"0%"},10,0,0,0]
["6.0","LIC-CT5520-UPG","Top Level SKU for 5520 AP Adder Licenses",null,{"v":0,"d":"0%"},1,0,0,0]
["6.0.1","CON-ECMU-LICGT552","SWSS UPGRADES Top Level SKU for 5520 AP Adder Licenses (60 months)",null,{"v":0,"d":"0%"},1,0,0,0]
["6.1","LIC-CT5520-1A","Cisco 5520 Wireless Controller 1 AP Adder License",null,{"v":0,"d":"0%"},250,0,0,0]
["6.1.0.1","CON-ECMU-LICT5520","SWSS UPGRADES Cisco 5520 Wireless Controller 1 AP Ad (60 months)",null,{"v":0,"d":"0%"},250,0,0,0]
["7.0","C9500-40X-A","Catalyst 9500 40-port 10Gig switch, Network Advantage",null,{"v":0,"d":"0%"},2,0,0,0]
["7.0.1","CON-SSSNT-C95004XA","SOLN SUPP 8X5XNBD Catalyst 9500 40-port 10Gig switch, Netw (60 months)",null,{"v":0,"d":"0%"},2,0,0,0]
["7.1","NETWORK-PNP-LIC","Network Plug-n-Play Connect for zero-touch device deployment",null,{"v":0,"d":"0%"},2,0,0,0]
["7.2","PI-LFAS-T","Prime Infrastructure Lifecycle & Assurance Term - Smart Lic",null,{"v":0,"d":"0%"},6,0,0,0]
["7.2.0.1","PI-LFAS-AP-T-5Y","PI Dev Lic for Lifecycle & Assurance Term 5Y",null,{"v":0,"d":"0%"},6,0,0,0]
["7.3","C9500-DNA-40X-A","C9500 DNA Advantage, Term licenses",null,{"v":0,"d":"0%"},2,0,0,0]
["7.3.0.1","CON-SSTCM-C9524QA","SOLN SUPP SW SUBC9500 DNA Advantage (60 months)",null,{"v":0,"d":"0%"},2,0,0,0]
["7.3.0.2","C9500-DNA-A-5Y","DNA Advantage 5 Year License",null,{"v":0,"d":"0%"},2,0,0,0]
["7.4","PWR-C4-950WAC-R","950W AC Config 4 Power Supply front to back cooling",null,{"v":0,"d":"0%"},2,0,0,0]
["7.5","C9500-NW-A","C9500 Network Stack, Advantage",null,{"v":0,"d":"0%"},2,0,0,0]
["7.6","C9500-NM-BLANK","Catalyst 9500 network module blank cover",null,{"v":0,"d":"0%"},2,0,0,0]
["7.7","PWR-C4-950WAC-R/2","950W AC Config 4 Power Supply front to back cooling",null,{"v":0,"d":"0%"},2,0,0,0]
["7.8","CAB-TA-IN","India AC Type A Power Cable",null,{"v":0,"d":"0%"},4,0,0,0]
["7.9","S9500UK9-179","Cisco Catalyst 9500 XE 17.9 UNIVERSAL",null,{"v":0,"d":"0%"},2,0,0,0]
["8.0","SFP-10G-LR-S=","10GBASE-LR SFP Module, Enterprise-Class",null,{"v":0,"d":"0%"},24,0,0,0]
["9.0","GLC-TE=","1000BASE-T SFP transceiver module for Category 5 copper wire",null,{"v":0,"d":"0%"},24,0,{"$f":"G55*F55","v":0},{"$f":"E55*H55","v":0}]
["10.0","C9500-40X-A","Catalyst 9500 40-port 10Gig switch, Network Advantage",null,{"v":0,"d":"0%"},2,0,0,0]
["10.0.1","CON-SSSNT-C95004XA","SOLN SUPP 8X5XNBD Catalyst 9500 40-port 10Gig switch, Netw (60 months)",null,{"v":0,"d":"0%"},2,0,0,0]
["10.1","NETWORK-PNP-LIC","Network Plug-n-Play Connect for zero-touch device deployment",null,{"v":0,"d":"0%"},2,0,0,0]
["10.2","PI-LFAS-T","Prime Infrastructure Lifecycle & Assurance Term - Smart Lic",null,{"v":0,"d":"0%"},6,0,0,0]
["10.2.0.1","PI-LFAS-AP-T-5Y","PI Dev Lic for Lifecycle & Assurance Term 5Y",null,{"v":0,"d":"0%"},6,0,0,0]
["10.3","C9500-DNA-40X-A","C9500 DNA Advantage, Term licenses",null,{"v":0,"d":"0%"},2,0,0,0]
["10.3.0.1","CON-SSTCM-C9524QA","SOLN SUPP SW SUBC9500 DNA Advantage (60 months)",null,{"v":0,"d":"0%"},2,0,0,0]
["10.3.0.2","C9500-DNA-A-5Y","DNA Advantage 5 Year License",null,{"v":0,"d":"0%"},2,0,0,0]
["10.4","PWR-C4-950WAC-R","950W AC Config 4 Power Supply front to back cooling",null,{"v":0,"d":"0%"},2,0,0,0]
["10.5","S9500UK9-176","Cisco Catalyst 9500 XE 17.6 UNIVERSAL",null,{"v":0,"d":"0%"},2,0,0,0]
["10.6","C9500-NW-A","C9500 Network Stack, Advantage",null,{"v":0,"d":"0%"},2,0,0,0]
["10.7","C9500-NM-BLANK","Catalyst 9500 network module blank cover",null,{"v":0,"d":"0%"},2,0,0,0]
["10.8","PWR-C4-950WAC-R/2","950W AC Config 4 Power Supply front to back cooling",null,{"v":0,"d":"0%"},2,0,0,0]
["10.9","CAB-TA-IN","India AC Type A Power Cable",null,{"v":0,"d":"0%"},4,0,0,0]
["11.0","SFP-10G-LR-S=","10GBASE-LR SFP Module, Enterprise-Class",null,{"v":0,"d":"0%"},24,0,0,0]
["12.0","GLC-TE=","1000BASE-T SFP transceiver module for Category 5 copper wire",null,{"v":0,"d":"0%"},24,0,0,0]
["13.0","C9800-L-F-K9","Cisco Catalyst 9800-L Wireless Controller_Fiber Uplink",null,{"v":0,"d":"0%"},2,0,0,0]
["13.0.1","CON-SSSNT-C9800LFL","SOLN SUPP 8X5XNBD Cisco Catalyst 9800-L Wireless Controlle (60 months)",null,{"v":0,"d":"0%"},2,0,0,0]
["13.1","LIC-C9800-DTLS-K9","Cisco Catalyst 9800 Series Wireless Controller DTLS License",null,{"v":0,"d":"0%"},2,0,0,0]
["13.2","SC9800LK9-173","Cisco Catalyst 9800-L Wireless Controller",null,{"v":0,"d":"0%"},2,0,0,0]
["13.3","C9800-AC-110W","Cisco Catalyst 9800 L Wireless Controller Power Supply",null,{"v":0,"d":"0%"},2,0,0,0]
["13.4","CAB-AC-C5-SAF","AC Power Cord, Type C5, South Africa",null,{"v":0,"d":"0%"},2,0,0,0]
["13.5","NETWORK-PNP-LIC","Network Plug-n-Play Connect for zero-touch device deployment",null,{"v":0,"d":"0%"},2,0,0,0]
["14.0","UCSC-PSU1-770W=","Cisco UCS 770W AC Power Supply for Rack Server",null,{"v":0,"d":"0%"},1,0,0,0]
["15.0","CW9162I-ROW","Catalyst Wireless 9162I AP (W6E, tri-band 2x2) w/Reg ROW",null,{"v":0,"d":"0%"},50,0,0,0]
["15.0.1","CON-SSSNT-CW9162RW","SOLN SUPP 8X5XNBD CAT WLS 9162I AP W6E tri-band 2x2 ROW",null,{"v":0,"d":"0%"},50,0,{"$f":"G81*F81","v":0},{"$f":"E81*H81","v":0}]
["15.1","SW9162-CAPWAP-K9","Capwap software for Catalyst 9162I",null,{"v":0,"d":"0%"},50,0,0,0]
["15.2","AIR-AP-T-RAIL-R","Ceiling Grid Clip for APs & Cellular Gateways-Recessed",null,{"v":0,"d":"0%"},50,0,0,0]
["15.3","AIR-AP-BRACKET-1","802.11 AP Low Profile Mounting Bracket (Default)",null,{"v":0,"d":"0%"},50,0,0,0]
["15.4","CDNA-E-C9162","Wireless Cisco DNA  On-Prem Essential, 9162 Tracking",null,{"v":0,"d":"0%"},50,0,0,0]
["15.4.0.1","DNA-E-3Y-C9162","C9162I Cisco DNA On-Prem Advantage,3Y Term,Trk Lic",null,{"v":0,"d":"0%"},50,0,0,0]
["15.5","AIR-DNA-E","Wireless Cisco DNA On-Prem Essential, Term Lic",null,{"v":0,"d":"0%"},50,0,0,0]
["15.5.0.1","AIR-DNA-E-3Y","Wireless Cisco DNA On-Prem Essential, 3Y Term Lic",null,{"v":0,"d":"0%"},50,0,0,0]
["15.5.0.2","CON-SSTCM-AIRDNAE","SOLN SUPP SW SUBAironet CISCO DNA Es",null,{"v":0,"d":"0%"},50,0,0,0]
["15.6","PI-LFAS-AP-T","Prime AP Term Licenses",null,{"v":0,"d":"0%"},50,0,0,0]
["15.6.0.1","PI-LFAS-AP-T-3Y","PI Dev Lic for Lifecycle & Assurance Term 3Y",null,{"v":0,"d":"0%"},50,0,0,0]
["15.7","AIR-DNA-E-T","Wireless Cisco DNA On-Prem Essential, Term, Tracker Lic",null,{"v":0,"d":"0%"},50,0,0,0]
["15.7.0.1","AIR-DNA-E-T-3Y","Wireless Cisco DNA On-Prem Essential, 3Y Term, Tracker Lic",null,{"v":0,"d":"0%"},50,0,0,0]
["15.8","AIR-DNA-NWSTACK-E","AIR CISCO DNA Perpetual Network Stack",null,{"v":0,"d":"0%"},50,0,0,0]
["15.9","NETWORK-PNP-LIC","Network Plug-n-Play Connect for zero-touch device deployment",null,{"v":0,"d":"0%"},50,0,0,0]
["15.10","CW9162I-MULTI","Minimum Quantity = 10",null,{"v":0,"d":"0%"},50,0,0,0]
[null,"TOTAL BID PRICE  (EXCL VAT)",{"$nulls":5},{"$f":"SUBTOTAL(9,H20:H96)","v":0},{"$f":"SUBTOTAL(9,I20:I96)","v":0}]
[null,"VAT (@15%)",{"$nulls":5},{"$f":"H97*0.15","v":0}]
[null,"TOTAL  BID PRICE (INCL VAT)",{"$nulls":5},{"$f":"H97+H98","v":0}]
[]
[]
[null,"I, the bidder, confirm that the price(s) and rate(s) quoted cover all the goods and/or works specified in the bidding documents; that the price(s) or rate(s) cover all my obligations and I accept that any mistakes regarding price(s), rate(s) or calculations will be at my own risk.\n[Note: First convert to PDF, then add signature]"]
[{"$nulls":3},"Name",null,"Capacity"]
[]
[{"$nulls":3},"Signature (above)",null,"Date"]

{"sheet":"Sheet1","index":1,"n_rows":50,"n_cols":6,"rows_kept":50}
[]
[]
["Line Number","Part Number","Description","Service Duration","Quantity","Smart Account Mandatory"]
["1.0","C9130AXI-E","Cisco Catalyst 9130AX Series","---",5,"-"]
["1.0.1","CON-SSSNT-C913E0XI","SOLN SUPP 8X5XNBD Cisco Catalyst 9130AX Series",36,5,"-"]
["1.1","SW9130AX-CAPWAP-K9","Capwap software for Catalyst 9130AX","---",5,"-"]
["1.2","AIR-AP-BRACKET-1","802.11 AP Low Profile Mounting Bracket (Default)","---",5,"-"]
["1.3","AIR-AP-T-RAIL-R","Ceiling Grid Clip for APs & Cellular Gateways-Recessed","---",5,"-"]
["1.4","CDNA-A-C9130","Wireless Cisco DNA On-Prem Advantage, 9130 Tracking","---",5,"-"]
["1.4.0.1","DNA-A-3Y-C9130","C9130AX Cisco DNA On-Prem Advantage,3Y Term, Trk Lic",36,5,"-"]
["1.5","AIR-DNA-A","Wireless Cisco DNA On-Prem Advantage, Term Lic","---",5,"-"]
["1.5.0.1","AIR-DNA-A-3Y","Wireless Cisco DNA On-Prem Advantage, 3Y Term Lic",36,5,"-"]
["1.5.0.2","CON-SSTCM-AIRDNAA","SOLN SUPP SW SUB Aironet CISCO DNA Ad",36,5,"-"]
["1.6","PI-LFAS-AP-T","Prime AP Term Licenses","---",5,"Yes"]
["1.6.0.1","PI-LFAS-AP-T-3Y","PI Dev Lic for Lifecycle & Assurance Term 3Y",36,5,"-"]
["1.7","AIR-DNA-A-T","Wireless Cisco DNA On-Prem Advantage, Term, Tracker Lic","---",5,"Yes"]
["1.7.0.1","AIR-DNA-A-T-3Y","Wireless Cisco DNA On-Prem Advantage, 3Y Term, Tracker Lic",36,5,{"$f":"-H15","v":0}]
["1.8","AIR-DNA-NWSTACK-A","AIR CISCO DNA Perpetual Network Stack","---",5,"Yes"]
["1.9","D-DNAS-EXT-BUN-T","Cisco DNA Spaces Extend Term License for Cisco DNA","---",5,"Yes"]
["1.9.0.1","D-DNAS-EXT-BUN-3Y","Cisco DNA Spaces Extend for Cisco DNA - 3Year",36,5,"-"]
["1.10","NETWORK-PNP-LIC","Network Plug-n-Play Connect for zero-touch device deployment","---",5,"Yes"]
["1.11","C9130-SINGLE","SINGLE PACK OPTION","---",5,"-"]
["1.12","C9130-OVER","C9130AX OVER OPTION","---",5,"-"]
["2.0","C9800-L-C-K9","Cisco Catalyst 9800-L Wireless Controller_Copper Uplink","---",1,"-"]
["2.0.1","CON-SSSNT-C9800LCL","SOLN SUPP 8X5XNBD Cisco Catalyst 9800-L Wireless Controller",12,1,"-"]
["2.1","SC9800LK9-173","Cisco Catalyst 9800-L Wireless Controller","---",1,"-"]
["2.2","C9800L-RMNT","C9800 Wireless Controller Rack Mount Tray","---",1,"-"]
["2.3","C9800-AC-110W","Cisco Catalyst 9800 L Wireless Controller Power Supply","---",1,"-"]
["2.4","CAB-AC-C5-IND","AC Power Cord, Type C5, India","---",1,"-"]
["2.5","NETWORK-PNP-LIC","Network Plug-n-Play Connect for zero-touch device deployment","---",1,"Yes"]
["3.0","WS-C3560CX-8XPD-S","Cisco Catalyst 3560-CX 2 x mGig, 6 x 1G PoE, IP Base","---",3,"-"]
["3.0.1","CON-SSSNT-WSC356CD","SOLN SUPP 8X5XNBD Cisco Catalyst 3560-CX 2 x mGig, 6 x 1G",36,3,"-"]
["3.1","CAB-TA-IN","India AC Type A Power Cable","---",3,"-"]
["3.2","CMPCT-CBLE-GRD","Cable Guard for the 3560-CX and 2960-CX Compact Switches","---",3,"-"]
["3.3","PWR-CLP","Power Retainer Clip For 3560-C, 2960-L  & C1000 Switches","---",3,"-"]
["3.4","CAB-CONSOLE-USB","Console Cable 6ft with USB Type A and mini-B","---",3,"-"]
["3.5","CMPCT-MGNT-TRAY","MAGNETIC MOUNTING TRAY FOR 3560-CX & 2960-CX COMPACT SWITCH","---",3,"-"]
["3.6","C1F1PCAT3560CXK9","Cisco ONE Foundation Perpetual - Catalyst 3560CX","---",3,"-"]
["3.7","C1-PI-LFAS-2K3K-K9","Cisco ONE PI Device License for LF & AS  for Cat 2k, 3k","---",3,"-"]
["3.8","C1-ISE-BASE-24P","Cisco ONE Identity Services Engine 50 EndPoint Base Lic","---",3,"-"]
["3.9","C1F1VCAT3560CX-02","Tracker PID v02 Fnd Perpetual CAT3560CX - no delivery","---",3,"-"]
["3.10","C3560CX1-DNAC1E","DNAC1 Essentials Term C3560CX 8P","---",3,"-"]
["3.10.0.1","C3560CX1-DNAC1E-3Y","DNAC1 Ess. Term C3560CX 8P 3Y",36,3,"-"]
["3.10.0.2","CON-SSTCM-C356CX1E","SOLN SUPP SW SUBDNAC1 Essentials Ter",36,3,"-"]
["3.11","C3560CX-8-DNAE","C3560CX DNA Essentials 8-Port Term License","---",3,"Yes"]
["3.11.0.1","C3K-DNAC1-TRK-3Y","DNAC1 Support Only Tracker Term SKU 3Y",36,3,"-"]
["3.12","C1-PI-LFAS-2K3K-D","PI Lifecycle & Assurance C2K/3K for Support only (No Lic)","---",3,"-"]
["3.12.0.1","PI-DNAC1-TRK-3Y","DNA4C1 PI LFAS Tracker SKU 3Y",36,3,"-"]
["3.13","C1-ISE-BASE-24P-D","ISE 50 EndPoint Base Support only (No Lic)","---",3,"-"]
["3.13.0.1","ISE-B-DNAC1-TRK-3Y","DNA4C1 ISE BASE Tracker SKU 3Y",36,3,"-"]